Workbook

Sheet Список
A1: Имя | B1: Отчество | C1: Должность | D1: Стаж | E1: Оклад | F1: Премия | G1: Всего | H1: Налог | I1: Заработок за день | J1: ИО | K1: ЗП в Евро
A2: Касьян | B2: Витальевич | C2: Директор по продажам | D2: 1 | E2: =VLOOKUP(C2,ЗП!A:B,2,0) -> 210000 | F2: =IF(D2>=10,5000,IF(D2>5,3000,0)) -> 0 | G2: =Оклад+Премия -> 210000 | H2: =G2*0.13 -> 27300 | I2: =G2/31 -> 6774.193548 | J2: =CONCATENATE(A2," ",B2) -> Касьян Витальевич | K2: =ROUNDUP(G2/$O$3,0) -> 2334 | O2: Курс Евро
A3: Марина | B3: Васильева | C3: Инженер по эксплуатации оборудования | D3: 1 | E3: =VLOOKUP(C3,ЗП!A:B,2,0) -> 49000 | F3: =IF(D3>=10,5000,IF(D3>5,3000,0)) -> 0 | G3: 49000 | H3: 6370 | I3: 1580.645161 | J3: Марина Васильева | K3: 545 | O3: 90
A4: Мирон | B4: Тарасович | C4: Инженер-конструктор категории IIВ | D4: 1 | E4: =VLOOKUP(C4,ЗП!A:B,2,0) -> 40000 | F4: 0 | G4: 40000 | H4: 5200 | I4: 1290.322581 | J4: Мирон Тарасович | K4: 445
A5: Петр | B5: Михайлович | C5: Инженер-механик | D5: 1 | E5: =VLOOKUP(C5,ЗП!A:B,2,0) -> 56000 | F5: 0 | G5: 56000 | H5: 7280 | I5: 1806.451613 | J5: Петр Михайлович | K5: 623
A6: Алексей | B6: Натанович | C6: Кладовщик | D6: 1 | E6: =VLOOKUP(C6,ЗП!A:B,2,0) -> 37000 | F6: 0 | G6: 37000 | H6: 4810 | I6: 1193.548387 | J6: Алексей Натанович | K6: 412
A7: Леонтий | B7: Платонович | C7: Оператор станков с программным управлением 1 категории | D7: 1 | E7: =VLOOKUP(C7,ЗП!A:B,2,0) -> 60000 | F7: 0 | G7: 60000 | H7: 7800 | I7: 1935.483871 | J7: Леонтий Платонович | K7: 667
A8: Родион | B8: Витальевич | C8: Оператор станков с программным управлением 2 категории | D8: 1 | E8: =VLOOKUP(C8,ЗП!A:B,2,0) -> 55000 | F8: 0 | G8: 55000 | H8: 7150 | I8: 1774.193548 | J8: Родион Витальевич | K8: 612
A9: Константин | B9: Дмитриевич | C9: Программист | D9: 1 | E9: =VLOOKUP(C9,ЗП!A:B,2,0) -> 56000 | F9: 0 | G9: 56000 | H9: 7280 | I9: 1806.451613 | J9: Константин Дмитриевич | K9: 623
A10: Мечеслав | B10: Даниилович | C10: Руководитель проектов по колонному оборудованию | D10: 1 | E10: =VLOOKUP(C10,ЗП!A:B,2,0) -> 70000 | F10: 0 | G10: 70000 | H10: 9100 | I10: 2258.064516 | J10: Мечеслав Даниилович | K10: 778
A11: Никифор | B11: Евгеньевич | C11: Специалист по оценке затрат | D11: 1 | E11: =VLOOKUP(C11,ЗП!A:B,2,0) -> 66000 | F11: 0 | G11: 66000 | H11: 8580 | I11: 2129.032258 | J11: Никифор Евгеньевич | K11: 734
A12: Василиса | B12: Львовна | C12: Администратор офиса | D12: 2 | E12: =VLOOKUP(C12,ЗП!A:B,2,0) -> 110000 | F12: 0 | G12: 110000 | H12: 14300 | I12: 3548.387097 | J12: Василиса Львовна | K12: 1223
A13: Варлаам | B13: Кимович | C13: Ведущий инженер по монтажу оборудования | D13: 2 | E13: =VLOOKUP(C13,ЗП!A:B,2,0) -> 90000 | F13: 0 | G13: 90000 | H13: 11700 | I13: 2903.225806 | J13: Варлаам Кимович | K13: 1000
A14: Казимир | B14: Куприянович | C14: Инженер по монтажу оборудования | D14: 2 | E14: =VLOOKUP(C14,ЗП!A:B,2,0) -> 60000 | F14: 0 | G14: 60000 | H14: 7800 | I14: 1935.483871 | J14: Казимир Куприянович | K14: 667
A15: Александр | B15: Александрович | C15: Инженер-программист | D15: 2 | E15: =VLOOKUP(C15,ЗП!A:B,2,0) -> 53000 | F15: 0 | G15: 53000 | H15: 6890 | I15: 1709.677419 | J15: Александр Александрович | K15: 589
A16: Гражина | B16: Прокловна | C16: Секретарь | D16: 2 | E16: =VLOOKUP(C16,ЗП!A:B,2,0) -> 35000 | F16: 0 | G16: 35000 | H16: 4550 | I16: 1129.032258 | J16: Гражина Прокловна | K16: 389
A17: Кондратий | B17: Лукьевич | C17: Слесарь по сборке металлоконструкций | D17: 2 | E17: =VLOOKUP(C17,ЗП!A:B,2,0) -> 50000 | F17: 0 | G17: 50000 | H17: 6500 | I17: 1612.903226 | J17: Кондратий Лукьевич | K17: 556
A18: Сильва | B18: Ильяовна | C18: Старший менеджер по закупкам | D18: 2 | E18: =VLOOKUP(C18,ЗП!A:B,2,0) -> 60000 | F18: 0 | G18: 60000 | H18: 7800 | I18: 1935.483871 | J18: Сильва Ильяовна | K18: 667
A19: Кондратий | B19: Лукьевич | C19: Старший оператор станков с программным управлением 2 категории | D19: 2 | E19: =VLOOKUP(C19,ЗП!A:B,2,0) -> 45000 | F19: 0 | G19: 45000 | H19: 5850 | I19: 1451.612903 | J19: Кондратий Лукьевич | K19: 500
A20: Павел | B20: Дмитрьевич | C20: Инженер-конструктор I категории | D20: 3 | E20: =VLOOKUP(C20,ЗП!A:B,2,0) -> 55000 | F20: 0 | G20: 55000 | H20: 7150 | I20: 1774.193548 | J20: Павел Дмитрьевич | K20: 612
A21: Павел | B21: Андреевич | C21: Инженер-электромеханик | D21: 3 | E21: =VLOOKUP(C21,ЗП!A:B,2,0) -> 37000 | F21: 0 | G21: 37000 | H21: 4810 | I21: 1193.548387 | J21: Павел Андреевич | K21: 412
A22: Ибрагил | B22: Львович | C22: Оператор автоматических и полуавтоматических линий станков и установок 1 категории | D22: 3 | E22: =VLOOKUP(C22,ЗП!A:B,2,0) -> 45000 | F22: 0 | G22: 45000 | H22: 5850 | I22: 1451.612903 | J22: Ибрагил Львович | K22: 500
A23: Виктор | B23: Семенович | C23: Станочник широкого профиля | D23: 3 | E23: =VLOOKUP(C23,ЗП!A:B,2,0) -> 50000 | F23: 0 | G23: 50000 | H23: 6500 | I23: 1612.903226 | J23: Виктор Семенович | K23: 556
A24: Астра | B24: Германовна | C24: Ассистент | D24: 4 | E24: =VLOOKUP(C24,ЗП!A:B,2,0) -> 45000 | F24: 0 | G24: 45000 | H24: 5850 | I24: 1451.612903 | J24: Астра Германовна | K24: 500
A25: Андрей | B25: Юлианович | C25: Инженер по сопровождению проектов | D25: 4 | E25: =VLOOKUP(C25,ЗП!A:B,2,0) -> 65000 | F25: 0 | G25: 65000 | H25: 8450 | I25: 2096.774194 | J25: Андрей Юлианович | K25: 723
A26: Лигия | B26: Мироновна | C26: Инженер-конструктор категории IIБ | D26: 4 | E26: =VLOOKUP(C26,ЗП!A:B,2,0) -> 45000 | F26: 0 | G26: 45000 | H26: 5850 | I26: 1451.612903 | J26: Лигия Мироновна | K26: 500
A27: Максимилиан | B27: Петрович | C27: Инженер-технолог | D27: 4 | E27: =VLOOKUP(C27,ЗП!A:B,2,0) -> 70000 | F27: 0 | G27: 70000 | H27: 9100 | I27: 2258.064516 | J27: Максимилиан Петрович | K27: 778
A28: Богдан | B28: Вячеславович | C28: Секретарь-референт | D28: 4 | E28: =VLOOKUP(C28,ЗП!A:B,2,0) -> 40000 | F28: 0 | G28: 40000 | H28: 5200 | I28: 1290.322581 | J28: Богдан Вячеславович | K28: 445
A29: Рудольф | B29: Яковович | C29: Специалист по закупкам | D29: 4 | E29: =VLOOKUP(C29,ЗП!A:B,2,0) -> 45000 | F29: 0 | G29: 45000 | H29: 5850 | I29: 1451.612903 | J29: Рудольф Яковович | K29: 500
A30: Клемент | B30: Дмитрьевич | C30: Старший инженер по сопровождению проектов | D30: 4 | E30: =VLOOKUP(C30,ЗП!A:B,2,0) -> 70000 | F30: 0 | G30: 70000 | H30: 9100 | I30: 2258.064516 | J30: Клемент Дмитрьевич | K30: 778
A31: Александр | B31: Ефимович | C31: Старший специалист по закупкам | D31: 4 | E31: =VLOOKUP(C31,ЗП!A:B,2,0) -> 70000 | F31: 0 | G31: 70000 | H31: 9100 | I31: 2258.064516 | J31: Александр Ефимович | K31: 778
A32: Донат | B32: Михайлович | C32: Инженер-технолог комплексных проектов | D32: 5 | E32: =VLOOKUP(C32,ЗП!A:B,2,0) -> 140000 | F32: 0 | G32: 140000 | H32: 18200 | I32: 4516.129032 | J32: Донат Михайлович | K32: 1556
A33: Пантелей | B33: Вениаминович | C33: Логист | D33: 5 | E33: =VLOOKUP(C33,ЗП!A:B,2,0) -> 50000 | F33: 0 | G33: 50000 | H33: 6500 | I33: 1612.903226 | J33: Пантелей Вениаминович | K33: 556
A34: Вилен | B34: Владленович | C34: Менеджер по продаже оборудования | D34: 5 | E34: =VLOOKUP(C34,ЗП!A:B,2,0) -> 100000 | F34: =IF(D34>=10,5000,IF(D34>5,3000,0)) -> 0 | G34: =Оклад+Премия -> 100000 | H34: =G34*0.13 -> 13000 | I34: =G34/31 -> 3225.806452 | J34: =CONCATENATE(A34," ",B34) -> Вилен Владленович | K34: =ROUNDUP(G34/$O$3,0) -> 1112
A35: Галина | B35: Валерьевна | C35: Руководитель комплексных проектов | D35: 5 | E35: =VLOOKUP(C35,ЗП!A:B,2,0) -> 170000 | F35: 0 | G35: 170000 | H35: 22100 | I35: 5483.870968 | J35: Галина Валерьевна | K35: 1889
A36: Сандра | B36: Павловна | C36: Руководитель отдела управления персоналом | D36: 5 | E36: =VLOOKUP(C36,ЗП!A:B,2,0) -> 250000 | F36: 0 | G36: 250000 | H36: 32500 | I36: 8064.516129 | J36: Сандра Павловна | K36: 2778
A37: Мия | B37: Николаевна | C37: Специалист по персоналу | D37: 5 | E37: =VLOOKUP(C37,ЗП!A:B,2,0) -> 80000 | F37: 0 | G37: 80000 | H37: 10400 | I37: 2580.645161 | J37: Мия Николаевна | K37: 889
A38: Тимур | B38: Лукьянович | C38: Мастер участка | D38: 6 | E38: =VLOOKUP(C38,ЗП!A:B,2,0) -> 60000 | F38: 3000 | G38: 63000 | H38: 8190 | I38: 2032.258065 | J38: Тимур Лукьянович | K38: 700
A39: Эльдар | B39: Миронович | C39: Мастер участка сборки и упаковки | D39: 6 | E39: =VLOOKUP(C39,ЗП!A:B,2,0) -> 30000 | F39: 3000 | G39: 33000 | H39: 4290 | I39: 1064.516129 | J39: Эльдар Миронович | K39: 367
A40: Ян | B40: Петрович | C40: Менеджер по поддержке комплексных проектов | D40: 6 | E40: =VLOOKUP(C40,ЗП!A:B,2,0) -> 132000 | F40: 3000 | G40: 135000 | H40: 17550 | I40: 4354.83871 | J40: Ян Петрович | K40: 1500
A41: Сергей | B41: Васильевич | C41: Менеджер по развитию технологий | D41: 6 | E41: =VLOOKUP(C41,ЗП!A:B,2,0) -> 130000 | F41: 3000 | G41: 133000 | H41: 17290 | I41: 4290.322581 | J41: Сергей Васильевич | K41: 1478
A42: Алия | B42: Ярославовна | C42: Руководитель отдела логистики | D42: 6 | E42: =VLOOKUP(C42,ЗП!A:B,2,0) -> 80000 | F42: 3000 | G42: 83000 | H42: 10790 | I42: 2677.419355 | J42: Алия Ярославовна | K42: 923
A43: Светлана | B43: Алексеевна | C43: Руководитель технологического отдела | D43: 6 | E43: =VLOOKUP(C43,ЗП!A:B,2,0) -> 250000 | F43: 3000 | G43: 253000 | H43: 32890 | I43: 8161.290323 | J43: Светлана Алексеевна | K43: 2812
A44: Елена | B44: Михайловна | C44: Бухгалтер | D44: 7 | E44: =VLOOKUP(C44,ЗП!A:B,2,0) -> 70000 | F44: 3000 | G44: 73000 | H44: 9490 | I44: 2354.83871 | J44: Елена Михайловна | K44: 812
A45: Леонтий | B45: Германнович | C45: Помощник генерального директора | D45: 7 | E45: =VLOOKUP(C45,ЗП!A:B,2,0) -> 150000 | F45: 3000 | G45: 153000 | H45: 19890 | I45: 4935.483871 | J45: Леонтий Германнович | K45: 1700
A46: Оскар | B46: Проклович | C46: Руководитель группы | D46: 7 | E46: =VLOOKUP(C46,ЗП!A:B,2,0) -> 110000 | F46: 3000 | G46: 113000 | H46: 14690 | I46: 3645.16129 | J46: Оскар Проклович | K46: 1256
A47: Мартын | B47: Наумович | C47: Руководитель отдела закупок | D47: 7 | E47: =VLOOKUP(C47,ЗП!A:B,2,0) -> 85000 | F47: 3000 | G47: 88000 | H47: 11440 | I47: 2838.709677 | J47: Мартын Наумович | K47: 978
A48: Софья | B48: Натановна | C48: Финансовый контролёр | D48: 7 | E48: =VLOOKUP(C48,ЗП!A:B,2,0) -> 90000 | F48: 3000 | G48: 93000 | H48: 12090 | I48: 3000 | J48: Софья Натановна | K48: 1034
A49: Феодосия | B49: Леонидовна | C49: Заместитель главного бухгалтера | D49: 8 | E49: =VLOOKUP(C49,ЗП!A:B,2,0) -> 80000 | F49: 3000 | G49: 83000 | H49: 10790 | I49: 2677.419355 | J49: Феодосия Леонидовна | K49: 923
A50: Аркадий | B50: Станиславович | C50: Менеджер по подготовке тендерных предложений | D50: 8 | E50: =VLOOKUP(C50,ЗП!A:B,2,0) -> 130000 | F50: 3000 | G50: 133000 | H50: 17290 | I50: 4290.322581 | J50: Аркадий Станиславович | K50: 1478
A51: Маргарита | B51: Лукьевна | C51: Начальник производства | D51: 8 | E51: =VLOOKUP(C51,ЗП!A:B,2,0) -> 165000 | F51: 3000 | G51: 168000 | H51: 21840 | I51: 5419.354839 | J51: Маргарита Лукьевна | K51: 1867
A52: Зиновий | B52: Макарович | C52: Оператор автоматических и полуавтоматических линий станков и установок 2 категории | D52: 8 | E52: =VLOOKUP(C52,ЗП!A:B,2,0) -> 40000 | F52: 3000 | G52: 43000 | H52: 5590 | I52: 1387.096774 | J52: Зиновий Макарович | K52: 478
A53: Эмилия | B53: Кимовна | C53: Специалист по охране труда | D53: 8 | E53: =VLOOKUP(C53,ЗП!A:B,2,0) -> 55000 | F53: 3000 | G53: 58000 | H53: 7540 | I53: 1870.967742 | J53: Эмилия Кимовна | K53: 645
A54: Марк | B54: Адамович | C54: Генеральный директор | D54: 9 | E54: =VLOOKUP(C54,ЗП!A:B,2,0) -> 300000 | F54: 3000 | G54: 303000 | H54: 39390 | I54: 9774.193548 | J54: Марк Адамович | K54: 3367
A55: Эльза | B55: Азаматовна | C55: Заместитель генерального директора | D55: 9 | E55: =VLOOKUP(C55,ЗП!A:B,2,0) -> 105000 | F55: 3000 | G55: 108000 | H55: 14040 | I55: 3483.870968 | J55: Эльза Азаматовна | K55: 1200
A56: Игнат | B56: Святославович | C56: Руководитель отдела охраны труда, обеспечения качества, безопасности и экологии | D56: 9 | E56: =VLOOKUP(C56,ЗП!A:B,2,0) -> 90000 | F56: 3000 | G56: 93000 | H56: 12090 | I56: 3000 | J56: Игнат Святославович | K56: 1034
A57: Михаил | B57: Андреевич | C57: Специалист по системному администрированию | D57: 9 | E57: =VLOOKUP(C57,ЗП!A:B,2,0) -> 65000 | F57: 3000 | G57: 68000 | H57: 8840 | I57: 2193.548387 | J57: Михаил Андреевич | K57: 756
A58: Олег | B58: Георгиевич | C58: Инженер по качеству | D58: 10 | E58: =VLOOKUP(C58,ЗП!A:B,2,0) -> 55000 | F58: 5000 | G58: 60000 | H58: 7800 | I58: 1935.483871 | J58: Олег Георгиевич | K58: 667
A59: Адриан | B59: Романович | C59: Помощник начальника производства | D59: 10 | E59: =VLOOKUP(C59,ЗП!A:B,2,0) -> 80000 | F59: 5000 | G59: 85000 | H59: 11050 | I59: 2741.935484 | J59: Адриан Романович | K59: 945
A60: Велорий | B60: Юрьевич | C60: Руководитель отдела управления персоналом | D60: 10 | E60: =VLOOKUP(C60,ЗП!A:B,2,0) -> 250000 | F60: 5000 | G60: 255000 | H60: 33150 | I60: 8225.806452 | J60: Велорий Юрьевич | K60: 2834
A61: Галина | B61: Дмитриевна | C61: Руководитель отдела управления проектами | D61: 10 | E61: =VLOOKUP(C61,ЗП!A:B,2,0) -> 80000 | F61: 5000 | G61: 85000 | H61: 11050 | I61: 2741.935484 | J61: Галина Дмитриевна | K61: 945
A62: Григорий | B62: Пантелеймонович | C62: Финансовый директор | D62: 10 | E62: =VLOOKUP(C62,ЗП!A:B,2,0) -> 100000 | F62: 5000 | G62: 105000 | H62: 13650 | I62: 3387.096774 | J62: Григорий Пантелеймонович | K62: 1167
A63: Родион | B63: Витальевич | C63: Бригадир участка электрогазосварки | D63: 11 | E63: =VLOOKUP(C63,ЗП!A:B,2,0) -> 54000 | F63: 5000 | G63: 59000 | H63: 7670 | I63: 1903.225806 | J63: Родион Витальевич | K63: 656
A64: Севастьян | B64: Федорович | C64: Главный бухгалтер | D64: 11 | E64: =VLOOKUP(C64,ЗП!A:B,2,0) -> 90000 | F64: 5000 | G64: 95000 | H64: 12350 | I64: 3064.516129 | J64: Севастьян Федорович | K64: 1056
A65: Екатерина | B65: Алексеевна | C65: Инженер по организации управления производством | D65: 11 | E65: =VLOOKUP(C65,ЗП!A:B,2,0) -> 70000 | F65: 5000 | G65: 75000 | H65: 9750 | I65: 2419.354839 | J65: Екатерина Алексеевна | K65: 834
A66: Роберт | B66: Ярославович | C66: Младший менеджер по сопровождению проектов | D66: 11 | E66: =VLOOKUP(C66,ЗП!A:B,2,0) -> 35000 | F66: =IF(D66>=10,5000,IF(D66>5,3000,0)) -> 5000 | G66: =Оклад+Премия -> 40000 | H66: =G66*0.13 -> 5200 | I66: =G66/31 -> 1290.322581 | J66: =CONCATENATE(A66," ",B66) -> Роберт Ярославович | K66: =ROUNDUP(G66/$O$3,0) -> 445
A67: Вольдемар | B67: Наумович | C67: Оператор-нарезчик металлической ленты | D67: 11 | E67: =VLOOKUP(C67,ЗП!A:B,2,0) -> 35000 | F67: 5000 | G67: 40000 | H67: 5200 | I67: 1290.322581 | J67: Вольдемар Наумович | K67: 445
A68: Исаак | B68: Святославович | C68: Старший оператор станков с программным управлением 1 категории | D68: 11 | E68: =VLOOKUP(C68,ЗП!A:B,2,0) -> 45000 | F68: 5000 | G68: 50000 | H68: 6500 | I68: 1612.903226 | J68: Исаак Святославович | K68: 556
A69: Устин | B69: Донатович | C69: Электрогазосварщик 5 разряда | D69: 11 | E69: =VLOOKUP(C69,ЗП!A:B,2,0) -> 60000 | F69: 5000 | G69: 65000 | H69: 8450 | I69: 2096.774194 | J69: Устин Донатович | K69: 723
A70: Маргарита | B70: Анатольевна | C70: Заведующий складом | D70: 12 | E70: =VLOOKUP(C70,ЗП!A:B,2,0) -> 60000 | F70: 5000 | G70: 65000 | H70: 8450 | I70: 2096.774194 | J70: Маргарита Анатольевна | K70: 723
A71: Александр | B71: Львович | C71: Заведующий хозяйством | D71: 12 | E71: =VLOOKUP(C71,ЗП!A:B,2,0) -> 95000 | F71: 5000 | G71: 100000 | H71: 13000 | I71: 3225.806452 | J71: Александр Львович | K71: 1112
A72: Алексей | B72: Рамилевич | C72: Операционный директор | D72: 12 | E72: =VLOOKUP(C72,ЗП!A:B,2,0) -> 150000 | F72: 5000 | G72: 155000 | H72: 20150 | I72: 5000 | J72: Алексей Рамилевич | K72: 1723
A73: Ирина | B73: Николаевна | C73: Руководитель отдела продаж | D73: 12 | E73: =VLOOKUP(C73,ЗП!A:B,2,0) -> 200000 | F73: 5000 | G73: 205000 | H73: 26650 | I73: 6612.903226 | J73: Ирина Николаевна | K73: 2278
A74: Ирина | B74: Юрьевна | C74: Специалист по закупкам | D74: 12 | E74: =VLOOKUP(C74,ЗП!A:B,2,0) -> 45000 | F74: 5000 | G74: 50000 | H74: 6500 | I74: 1612.903226 | J74: Ирина Юрьевна | K74: 556
A75: Виктор | B75: Павлович | C75: Специалист по монтажу оборудования | D75: 12 | E75: =VLOOKUP(C75,ЗП!A:B,2,0) -> 54000 | F75: 5000 | G75: 59000 | H75: 7670 | I75: 1903.225806 | J75: Виктор Павлович | K75: 656
A76: Натан | B76: Пётрович | C76: Бригадир участка | D76: 13 | E76: =VLOOKUP(C76,ЗП!A:B,2,0) -> 50000 | F76: 5000 | G76: 55000 | H76: 7150 | I76: 1774.193548 | J76: Натан Пётрович | K76: 612
A77: Август | B77: Богуславович | C77: Инженер комплексных проектов | D77: 13 | E77: =VLOOKUP(C77,ЗП!A:B,2,0) -> 105000 | F77: 5000 | G77: 110000 | H77: 14300 | I77: 3548.387097 | J77: Август Богуславович | K77: 1223
A78: Ростислав | B78: Арсеньевич | C78: Инженер-технолог | D78: 13 | E78: =VLOOKUP(C78,ЗП!A:B,2,0) -> 70000 | F78: 5000 | G78: 75000 | H78: 9750 | I78: 2419.354839 | J78: Ростислав Арсеньевич | K78: 834
A79: Павел | B79: Николаевич | C79: Начальник отдела подготовки производства | D79: 13 | E79: =VLOOKUP(C79,ЗП!A:B,2,0) -> 76000 | F79: 5000 | G79: 81000 | H79: 10530 | I79: 2612.903226 | J79: Павел Николаевич | K79: 900
A80: Максимилиан | B80: Валерьянович | C80: Начальник цеха производства насадки | D80: 13 | E80: =VLOOKUP(C80,ЗП!A:B,2,0) -> 107000 | F80: 5000 | G80: 112000 | H80: 14560 | I80: 3612.903226 | J80: Максимилиан Валерьянович | K80: 1245
A81: Любомир | B81: Эльдарович | C81: Оператор автоматических и полуавтоматических линий станков и установок 3 категории | D81: 13 | E81: =VLOOKUP(C81,ЗП!A:B,2,0) -> 35000 | F81: 5000 | G81: 40000 | H81: 5200 | I81: 1290.322581 | J81: Любомир Эльдарович | K81: 445
A82: Герасим | B82: Федотович | C82: Помощник руководителя по обеспечению качества | D82: 13 | E82: =VLOOKUP(C82,ЗП!A:B,2,0) -> 40000 | F82: 5000 | G82: 45000 | H82: 5850 | I82: 1451.612903 | J82: Герасим Федотович | K82: 500
A83: Мечислав | B83: Юрьевич | C83: Руководитель инжинирингового отдела | D83: 13 | E83: =VLOOKUP(C83,ЗП!A:B,2,0) -> 75000 | F83: 5000 | G83: 80000 | H83: 10400 | I83: 2580.645161 | J83: Мечислав Юрьевич | K83: 889
A84: Алексей | B84: Андреевич | C84: Инженер по сварке | D84: 14 | E84: =VLOOKUP(C84,ЗП!A:B,2,0) -> 60000 | F84: 5000 | G84: 65000 | H84: 8450 | I84: 2096.774194 | J84: Алексей Андреевич | K84: 723
A85: Венедикт | B85: Геласьевич | C85: Водитель погрузчика | D85: 15 | E85: =VLOOKUP(C85,ЗП!A:B,2,0) -> 45000 | F85: 5000 | G85: 50000 | H85: 6500 | I85: 1612.903226 | J85: Венедикт Геласьевич | K85: 556
A86: Исаак | B86: Михаилович | C86: Менеджер (в коммерческой деятельности) по продажам | D86: 15 | E86: =VLOOKUP(C86,ЗП!A:B,2,0) -> 98000 | F86: 5000 | G86: 103000 | H86: 13390 | I86: 3322.580645 | J86: Исаак Михаилович | K86: 1145
A87: Лука | B87: Серапионович | C87: Менеджер по инжинирингу и продаже оборудования для газопереработки | D87: 15 | E87: =VLOOKUP(C87,ЗП!A:B,2,0) -> 88000 | F87: 5000 | G87: 93000 | H87: 12090 | I87: 3000 | J87: Лука Серапионович | K87: 1034
A88: Виссарион | B88: Владимирович | C88: Менеджер по сопровождению проектов | D88: 15 | E88: =VLOOKUP(C88,ЗП!A:B,2,0) -> 78000 | F88: 5000 | G88: 83000 | H88: 10790 | I88: 2677.419355 | J88: Виссарион Владимирович | K88: 923
A89: Давид | B89: Геннадьевич | C89: Руководитель отдела продаж | D89: 15 | E89: =VLOOKUP(C89,ЗП!A:B,2,0) -> 200000 | F89: 5000 | G89: 205000 | H89: 26650 | I89: 6612.903226 | J89: Давид Геннадьевич | K89: 2278
A90: Азарий | B90: Оскарович | C90: Специалист по контролю качества | D90: 15 | E90: =VLOOKUP(C90,ЗП!A:B,2,0) -> 60000 | F90: 5000 | G90: 65000 | H90: 8450 | I90: 2096.774194 | J90: Азарий Оскарович | K90: 723
A91: Макар | B91: Оскарович | C91: Технический менеджер по продажам | D91: 15 | E91: =VLOOKUP(C91,ЗП!A:B,2,0) -> 110000 | F91: 5000 | G91: 115000 | H91: 14950 | I91: 3709.677419 | J91: Макар Оскарович | K91: 1278

Sheet ЗП
A1: Должность | B1: Оклад
A2: Генеральный директор | B2: 300000
A3: Заведующий хозяйством | B3: 95000
A4: Операционный директор | B4: 150000
A5: Бухгалтер | B5: 70000
A6: Главный бухгалтер | B6: 90000
A7: Заместитель главного бухгалтера | B7: 80000
A8: Финансовый директор | B8: 100000
A9: Финансовый контролёр | B9: 90000
A10: Специалист по системному администрированию | B10: 65000
A11: Инженер по качеству | B11: 55000
A12: Помощник руководителя по обеспечению качества | B12: 40000
A13: Руководитель отдела охраны труда, обеспечения качества, безопасности и экологии | B13: 90000
A14: Специалист по контролю качества | B14: 60000
A15: Специалист по охране труда | B15: 55000
A16: Администратор офиса | B16: 110000
A17: Руководитель отдела управления персоналом | B17: 250000
A18: Секретарь | B18: 35000
A19: Специалист по персоналу | B19: 80000
A20: Заведующий складом | B20: 60000
A21: Кладовщик | B21: 37000
A22: Руководитель отдела закупок | B22: 85000
A23: Специалист по закупкам | B23: 45000
A24: Старший менеджер по закупкам | B24: 60000
A25: Старший специалист по закупкам | B25: 70000
A26: Логист | B26: 50000
A27: Руководитель отдела логистики | B27: 80000
A28: Инженер-конструктор I категории | B28: 55000
A29: Инженер-конструктор категории IIБ | B29: 45000
A30: Инженер-конструктор категории IIВ | B30: 40000
A31: Руководитель инжинирингового отдела | B31: 75000
A32: Инженер по монтажу оборудования | B32: 60000
A33: Инженер по сопровождению проектов | B33: 65000
A34: Менеджер по сопровождению проектов | B34: 78000
A35: Младший менеджер по сопровождению проектов | B35: 35000
A36: Руководитель отдела управления проектами | B36: 80000
A37: Руководитель проектов по колонному оборудованию | B37: 70000
A38: Специалист по монтажу оборудования | B38: 54000
A39: Специалист по оценке затрат | B39: 66000
A40: Старший инженер по сопровождению проектов | B40: 70000
A41: Ведущий инженер по монтажу оборудования | B41: 90000
A42: Технический менеджер по продажам | B42: 110000
A43: Инженер комплексных проектов | B43: 105000
A44: Инженер-технолог комплексных проектов | B44: 140000
A45: Менеджер по поддержке комплексных проектов | B45: 132000
A46: Руководитель комплексных проектов | B46: 170000
A47: Срециалист по закупкам | B47: 60000
A48: Руководитель отдела управления персоналом | B48: 200000
A49: Помощник генерального директора | B49: 150000
A50: Директор по продажам | B50: 210000
A51: Заместитель генерального директора | B51: 105000
A52: Менеджер (в коммерческой деятельности) по продажам | B52: 98000
A53: Менеджер по инжинирингу и продаже оборудования для газопереработки | B53: 88000
A54: Менеджер по подготовке тендерных предложений | B54: 130000
A55: Менеджер по продаже оборудования | B55: 100000
A56: Руководитель отдела продаж | B56: 200000
A57: Инженер-технолог | B57: 70000
A58: Руководитель технологического отдела | B58: 250000
A59: Менеджер по развитию технологий | B59: 130000
A60: Руководитель группы | B60: 110000
A61: Руководитель отдела продаж | B61: 170000
A62: Секретарь-референт | B62: 40000
A63: Инженер-технолог | B63: 80000
A64: Начальник производства | B64: 165000
A65: Ассистент | B65: 45000
A66: Помощник начальника производства | B66: 80000
A67: Водитель погрузчика | B67: 45000
A68: Начальник цеха производства насадки | B68: 107000
A69: Оператор-нарезчик металлической ленты | B69: 35000
A70: Мастер участка | B70: 60000
A71: Бригадир участка | B71: 50000
A72: Оператор автоматических и полуавтоматических линий станков и установок 1 категории | B72: 45000
A73: Оператор автоматических и полуавтоматических линий станков и установок 3 категории | B73: 35000
A74: Оператор автоматических и полуавтоматических линий станков и установок 2 категории | B74: 40000
A75: Мастер участка сборки и упаковки | B75: 30000
A76: Слесарь по сборке металлоконструкций | B76: 50000
A77: Оператор станков с программным управлением 1 категории | B77: 60000
A78: Оператор станков с программным управлением 2 категории | B78: 55000
A79: Станочник широкого профиля | B79: 50000
A80: Старший оператор станков с программным управлением 1 категории | B80: 45000
A81: Старший оператор станков с программным управлением 2 категории | B81: 45000
A82: Бригадир участка электрогазосварки | B82: 54000
A83: Инженер по сварке | B83: 60000
A84: Электрогазосварщик 5 разряда | B84: 60000
A85: Инженер по эксплуатации оборудования | B85: 49000
A86: Инженер-механик | B86: 56000
A87: Инженер-электромеханик | B87: 37000
A88: Инженер по организации управления производством | B88: 70000
A89: Инженер-программист | B89: 53000
A90: Начальник отдела подготовки производства | B90: 76000
A91: Программист | B91: 56000
